bitfinex/quotes_ETHUSD_20240719
["timestamp","ask_amount","ask_price","bid_price","bid_amount"]
[1721387421818,2.9372,3404.6,3404.5,1.055]
[1721387422023,2.9372,3404.6,3404.0,2.4716]
[1721387422350,2.9372,3404.6,3404.1,0.794748]
[1721387422834,2.93708,3404.8,3404.1,0.794748]
[1721387423453,2.93711,3404.7,3404.1,0.794748]
[1721387427864,2.93734,3404.5,3404.0,2.4716]
[1721387428156,2.93737,3404.5,3404.0,2.4716]
[1721387428364,2.93737,3404.4,3404.0,2.4716]
[1721387439009,2.93755,3404.2,3404.0,2.4716]
[1721387439194,2.3566,3404.8,3403.7,2.4947]
[1721387439195,2.9377,3404.1,3403.7,2.4947]
[1721387441921,2.93749,3404.3,3403.7,2.4947]
[1721387442072,2.93725,3404.6,3404.2,1.057]
[1721387442409,2.93725,3404.6,3404.4,1.057]
[1721387447943,2.93725,3404.6,3404.2,1.057]
[1721387451124,2.93725,3404.6,3404.4,1.057]
[1721387451704,5.87412,3404.8,3404.4,1.057]
[1721387451906,2.93713,3404.7,3404.4,1.057]
[1721387454311,2.93723,3404.6,3404.4,1.057]
[1721387455434,2.93723,3404.6,3404.2,1.057]
[1721387457015,2.93703,3404.8,3404.2,1.057]
[1721387457203,3.67131672,3405.4,3404.6,1.057]
[1721387457204,1.23223983,3405.1,3404.6,1.057]
[1721387457405,2.93655,3405.4,3405.0,1.057]
[1721387457406,4.16878983,3405.4,3405.0,1.057]
[1721387457719,2.93655,3405.4,3404.8,1.057]
[1721387457927,3.79601958,3405.4,3404.8,1.057]
[1721387458106,0.85946958,3405.4,3404.0,2.93769]
[1721387458308,2.93701,3404.9,3404.4,1.057]
[1721387459147,5.35717,3404.7,3403.9,2.404]
[1721387459332,2.93734,3404.5,3404.0,1.057]
[1721387461548,2.93737,3404.4,3403.9,2.404]
[1721387461706,2.93754,3404.2,3403.9,3.461]
[1721387463246,2.93754,3404.2,3404.1,1.057]
[1721387469960,1.23223983,3404.5,3404.1,1.057]
[1721387470146,2.93722,3404.6,3404.3,1.057]
[1721387470354,2.93722,3404.6,3404.5,1.057]
[1721387471931,1.23223983,3404.8,3404.5,1.057]
[1721387472135,2.93712,3404.7,3404.5,1.057]
[1721387472875,2.93712,3404.7,3404.3,1.057]
[1721387474373,2.93752,3404.3,3404.1,1.057]
[1721387482190,2.93754,3404.2,3404.1,1.057]
[1721387482398,2.93772,3404.0,3403.9,1.057]
[1721387482626,3.89874425,3404.6,3403.4,2.3952]
[1721387482627,2.93784,3403.9,3403.4,2.3952]
[1721387482922,2.93803,3403.7,3403.1,7.94421026]
[1721387483123,2.93803,3403.7,3403.6,1.057]
[1721387486825,5.87568,3403.9,3403.6,1.057]
[1721387487131,5.87568,3403.9,3403.8,1.057]
[1721387487687,2.93781,3403.9,3403.8,1.057]
[1721387488329,2.93781,3403.9,3403.8,3.3576]
[1721387488887,2.93763,3404.1,3403.8,3.3576]
[1721387489192,2.93763,3404.1,3404.0,1.057]
[1721387489390,1.23223983,3404.4,3404.0,1.057]
[1721387489391,4.16954983,3404.5,3404.0,1.057]
[1721387489592,2.93731,3404.5,3404.4,1.057]
[1721387490092,2.93714,3404.7,3404.4,1.057]
[1721387490322,2.93714,3404.7,3404.6,1.057]
[1721387491930,2.93714,3404.7,3404.4,1.057]
[1721387492795,2.9372,3404.6,3404.4,1.057]
[1721387492999,2.93728,3404.5,3404.4,1.057]
[1721387494730,2.93728,3404.5,3404.2,1.057]
[1721387495236,2.93737,3404.4,3404.2,1.057]
[1721387497104,2.9372,3404.6,3404.2,1.057]
[1721387497436,2.9372,3404.6,3404.4,1.057]
[1721387498098,2.93706,3404.8,3404.5,2.4209]
[1721387498306,2.93706,3404.8,3404.6,1.057]
[1721387499433,2.93706,3404.8,3404.4,1.057]
[1721387499434,2.93711,3404.7,3404.4,1.057]
[1721387501039,2.93728,3404.5,3404.2,1.057]
[1721387501266,2.9376,3404.2,3403.8,2.3901]
[1721387501547,2.9376,3404.2,3403.8,1.057]
[1721387501741,2.93777,3404.0,3403.6,1.057]
[1721387502244,2.93777,3404.0,3403.8,1.057]
[1721387502848,2.9378,3403.9,3403.8,1.057]
[1721387504913,2.93768,3404.1,3403.8,1.057]
[1721387505145,2.93768,3404.1,3404.0,1.057]
[1721387510737,1.23223983,3404.4,3404.0,3.4804]
[1721387510942,2.93729,3404.5,3404.2,1.057]
[1721387514975,2.9372,3404.6,3404.4,1.057]
[1721387516226,2.93703,3404.8,3404.4,1.057]
[1721387516468,2.93711,3404.7,3404.4,1.057]
[1721387519664,2.9372,3404.6,3404.4,1.057]
[1721387521533,2.9372,3404.6,3404.4,1.0877261]
[1721387528757,2.93712,3404.7,3404.4,1.0877261]
[1721387528959,2.93712,3404.7,3404.6,1.057]
[1721387529472,2.93712,3404.7,3404.6,1.0877261]
[1721387530188,2.93712,3404.7,3404.6,0.0307261]
[1721387540178,3.80169559,3404.7,3404.6,0.0307261]
[1721387541807,5.03393542,3404.7,3404.6,0.0307261]
[1721387542303,7.97105542,3404.7,3404.6,0.0307261]
[1721387542806,7.97031376,3404.7,3404.6,0.0307261]
[1721387544108,13.35945137,3404.7,3404.6,0.0307261]
[1721387544258,18.14377262,3404.7,3404.6,0.0307261]
[1721387544458,19.29657137,3404.7,3404.6,0.0307261]
[1721387544658,19.84657137,3404.7,3404.6,0.0307261]
[1721387544907,22.00163949,3404.7,3404.6,0.0307261]
[1721387545366,19.84657137,3404.7,3404.6,0.0307261]
[1721387545705,22.00163949,3404.7,3404.6,0.0307261]
[1721387546201,19.84657137,3404.7,3404.6,0.0307261]
[1721387547456,19.84653689,3404.7,3404.6,0.0307261]
[1721387551365,19.84653689,3404.7,3404.6,6.1e-06]
[1721387555167,22.78365689,3404.7,3404.6,6.1e-06]
[1721387555368,2.93832,3403.3,3403.2,2.3954]
[1721387556303,2.93832,3403.3,3403.2,3.4524]
[1721387558797,2.93832,3403.3,3403.2,2.3954]
[1721387559198,2.93832,3403.3,3403.2,3.4524]
[1721387559618,2.4976,3403.5,3402.6,9.6664]
[1721387559823,2.93859,3403.0,3402.6,9.6664]
[1721387560026,2.93867,3402.9,3402.7,1.057]
[1721387560647,2.93859,3403.0,3402.7,1.057]
[1721387560940,2.93841,3403.2,3403.0,2.3364]
[1721387562202,2.93841,3403.2,3403.1,1.057]
[1721387563800,2.93835,3403.3,3403.1,1.057]
[1721387564822,2.93841,3403.2,3403.1,1.057]
[1721387565936,2.93841,3403.2,3403.0,2.3364]
[1721387566433,2.93849,3403.1,3402.7,3.4957]
[1721387567098,2.93849,3403.1,3402.7,3.493716]
[1721387567300,2.3491,3403.6,3402.2,7.33]
[1721387567301,2.93885,3402.7,3402.2,7.33]
[1721387567524,2.93885,3402.7,3402.2,1.057]
[1721387567831,5.87748,3402.9,3402.2,1.057]
[1721387568038,2.93878,3402.8,3401.9,2.93952]
[1721387568330,2.93878,3402.8,3402.3,1.057]
[1721387568704,2.93878,3402.8,3402.5,1.057]
[1721387569095,2.93853,3403.1,3402.7,1.057]
[1721387569322,2.93858,3403.0,3402.9,1.057]
[1721387570349,2.93846,3403.2,3402.9,1.057]
[1721387570551,2.93846,3403.2,3403.1,1.057]
[1721387572027,2.93846,3403.2,3402.7,2.4067]
[1721387572859,2.93851,3403.1,3402.7,2.4067]
[1721387573755,2.93863,3403.0,3402.7,2.4067]
[1721387575633,2.93847,3403.2,3402.7,2.4067]
[1721387575833,2.93836,3403.3,3402.7,2.90137]
[1721387576532,2.93842,3403.2,3402.7,2.90137]
[1721387577172,2.93838,3403.3,3402.7,2.90137]
[1721387579279,2.93807,3403.6,3402.7,5.8402]
[1721387579642,2.93817,3403.5,3402.7,5.8402]
[1721387579936,2.93817,3403.5,3402.8,0.877921]
[1721387580159,2.93824,3403.4,3402.8,0.877921]
[1721387581100,2.93792,3403.8,3402.7,2.90137]
[1721387581413,2.93846,3403.2,3402.7,2.4067]
[1721387583296,6.45504553,3404.0,3402.7,2.4067]
[1721387583297,2.93809,3403.6,3402.7,2.4067]
[1721387583523,2.93809,3403.6,3402.7,5.34547]
[1721387583703,2.93815,3403.5,3402.7,5.34547]
[1721387583878,2.93815,3403.5,3402.8,1.128448]
[1721387585209,2.93815,3403.5,3402.9,2.4239]
[1721387585675,2.93824,3403.4,3402.9,2.4239]
[1721387585880,2.93815,3403.5,3402.9,2.4239]
[1721387585881,2.93833,3403.3,3402.9,2.4239]
[1721387589495,2.93815,3403.5,3402.9,2.4239]
[1721387589735,2.93815,3403.5,3402.9,2.960182]
[1721387590436,4.16700553,3403.7,3402.9,2.960182]
[1721387590437,1.22899553,3403.7,3402.9,2.960182]
[1721387590582,4.16684553,3403.9,3403.1,2.4757]
[1721387590784,2.9379,3403.8,3403.1,2.4757]
[1721387592822,4.16672553,3404.0,3403.2,2.4757]
[1721387593013,4.16672553,3404.0,3403.3,0.54142]
[1721387595995,4.16672553,3404.0,3403.4,2.54]
[1721387596635,4.16655553,3404.2,3403.8,2.54]
[1721387596936,2.93756,3404.2,3403.9,2.3103]
[1721387602036,2.93711,3404.7,3403.9,3.42281]
[1721387602237,2.93711,3404.7,3404.3,2.2882]
[1721387605658,2.93694,3404.9,3404.3,2.2882]
[1721387607350,2.93704,3404.8,3404.3,2.2882]
[1721387608548,2.93714,3404.7,3404.3,2.2882]
[1721387608725,2.93714,3404.7,3404.2,2.54]
[1721387609121,2.93747,3404.3,3403.9,2.4466]
[1721387612148,5.8747,3404.5,3403.9,2.4466]
[1721387612458,2.93735,3404.5,3403.9,2.4466]
[1721387613225,2.93737,3404.4,3403.9,2.4466]
[1721387616061,2.93737,3404.4,3404.3,1.057]
[1721387616272,3.524827,3404.4,3404.3,1.057]
[1721387622338,2.93737,3404.4,3404.3,1.057]
[1721387623757,2.93693,3405.0,3404.3,3.4908]
[1721387623758,2.93706,3404.8,3404.3,3.4908]
[1721387623976,2.93706,3404.8,3404.7,1.057]
[1721387624425,2.9368,3405.1,3404.7,1.057]
[1721387624736,2.9368,3405.1,3405.0,1.057]
[1721387629541,5.87362,3405.1,3405.0,1.057]
[1721387629975,5.87362,3405.1,3404.4,2.4036]
[1721387629976,2.3705,3405.2,3403.9,7.33]
[1721387630148,2.93727,3404.6,3404.0,2.4036]
[1721387630361,2.93749,3404.3,3404.0,2.4036]
[1721387630760,2.93734,3404.5,3404.0,2.4036]
[1721387631278,2.93723,3404.6,3404.0,2.4036]
[1721387631279,2.93738,3404.4,3404.0,2.4036]
[1721387631440,2.93738,3404.4,3404.3,1.057]
[1721387632178,2.93738,3404.4,3404.0,2.4036]
[1721387632677,2.93723,3404.6,3404.0,2.4036]
[1721387632678,2.93729,3404.5,3404.0,2.4036]
[1721387634705,2.93729,3404.5,3404.0,3.191552]
[1721387634914,2.93706,3404.8,3404.0,3.191552]
[1721387634915,2.93706,3404.8,3404.1,2.2858]
[1721387637077,2.93706,3404.8,3404.1,2.93763]
[1721387637406,2.93706,3404.8,3404.3,2.538]
[1721387640623,2.93746,3404.3,3403.9,4.8893]
[1721387641284,2.93736,3404.5,3403.9,4.8893]
[1721387641718,2.93726,3404.6,3403.9,4.8893]
[1721387641719,2.93738,3404.4,3403.9,4.8893]
[1721387643084,2.93726,3404.6,3404.0,2.2944]
[1721387644221,2.93729,3404.5,3404.0,2.2944]
[1721387646135,1.22899553,3404.8,3404.1,2.3367]
[1721387646343,1.22899553,3404.8,3404.3,2.538]
[1721387646344,2.93708,3404.8,3404.3,2.538]
[1721387646631,2.93708,3404.8,3404.4,2.4904]
[1721387646834,2.93708,3404.8,3404.4,2.99324]
[1721387648327,1.22899553,3405.3,3404.8,2.3046]
[1721387648632,4.47391765,3405.4,3404.8,2.3046]
[1721387648633,4.16553553,3405.4,3404.8,2.3046]
[1721387649142,2.93654,3405.4,3404.8,2.3046]
[1721387649452,2.93669,3405.2,3404.8,2.3046]
[1721387650148,5.87312,3405.4,3404.8,2.3046]
[1721387650304,2.93661,3405.3,3404.8,2.3046]
[1721387650830,2.93668,3405.2,3404.8,2.3046]
[1721387651042,2.93668,3405.2,3404.5,2.3217]
[1721387651241,3.64690155,3405.2,3404.5,2.3217]
[1721387652704,2.93686,3405.0,3404.5,2.3217]
[1721387654013,2.93686,3405.0,3404.9,1.057]
[1721387654334,2.93668,3405.2,3404.9,1.057]
[1721387654637,2.93668,3405.2,3405.1,1.057]
[1721387655034,2.93642,3405.5,3405.1,3.3971]
[1721387655203,2.93642,3405.5,3405.3,1.057]
[1721387656235,1.22899553,3405.7,3405.3,1.057]
[1721387656440,2.93619,3405.8,3405.6,1.057]
[1721387656635,3.67703515,3405.8,3405.6,1.057]
[1721387657135,2.93625,3405.7,3405.6,1.057]
[1721387658042,2.93625,3405.7,3405.1,2.3401]
[1721387658240,2.93636,3405.6,3405.1,2.3401]
[1721387658412,2.93642,3405.5,3405.1,2.3401]
[1721387658799,2.93662,3405.3,3405.0,2.536]
[1721387659000,2.93662,3405.3,3404.6,4.912]
[1721387659498,2.93691,3405.0,3404.6,4.912]
[1721387659808,2.93685,3405.1,3404.6,2.376]
[1721387659809,2.93696,3404.9,3404.6,2.376]
[1721387660139,2.93696,3404.9,3404.3,2.3001]
[1721387660304,2.93696,3404.9,3404.3,3.7489448]
[1721387661950,2.93696,3404.9,3404.6,2.536]
[1721387666059,2.93703,3404.8,3404.6,2.536]
[1721387666958,3.61189553,3405.4,3404.3,2.3001]
[1721387667142,3.61189553,3405.4,3403.7,9.7358]
[1721387667143,2.93754,3404.2,3403.7,9.7358]
[1721387667353,2.93754,3404.2,3403.7,2.4058]
[1721387667555,2.93769,3404.1,3403.7,2.4058]
[1721387669622,2.93754,3404.2,3403.9,2.536]
[1721387670454,2.93747,3404.3,3403.9,2.536]
[1721387672843,2.93723,3404.6,3403.9,3.03018]
[1721387679992,2.93708,3404.8,3404.0,2.4843]
[1721387680190,2.93686,3405.0,3404.7,2.536]
[1721387683423,2.93668,3405.2,3404.7,2.536]
[1721387683589,2.93668,3405.2,3404.7,3.331766]
[1721387685441,2.93677,3405.1,3404.7,3.331766]
[1721387685573,2.93677,3405.1,3404.7,2.536]
[1721387686034,2.93663,3405.3,3404.7,2.536]
[1721387686712,2.93663,3405.3,3404.8,2.4158]
[1721387687017,2.93654,3405.4,3404.8,2.4158]
[1721387687018,2.93668,3405.2,3404.8,2.4158]
[1721387689580,2.93668,3405.2,3404.7,2.536]
[1721387689784,2.93702,3404.9,3404.2,2.4158]
[1721387690289,2.93712,3404.7,3404.2,2.4158]
[1721387693089,2.88712,3404.7,3404.2,2.4158]
[1721387696115,2.93678,3405.1,3404.5,2.536]
[1721387696653,2.93678,3405.1,3404.6,2.4649]
[1721387697514,2.93661,3405.3,3404.6,2.4649]
[1721387697722,2.93668,3405.2,3404.6,2.4649]
[1721387700448,2.93686,3405.0,3404.6,2.4649]
[1721387700659,2.2624,3404.9,3404.4,2.536]
[1721387700808,2.93686,3405.0,3404.4,3.328876]
[1721387701437,2.93705,3404.8,3404.2,2.4553]
[1721387701691,2.93722,3404.6,3404.0,5.536]
[1721387701958,2.93722,3404.6,3404.0,2.536]
[1721387703062,2.93705,3404.8,3404.5,2.2796]
[1721387705530,2.93686,3405.0,3404.5,2.2796]
[1721387705737,2.93686,3405.0,3404.6,0.48156]
[1721387706037,2.93671,3405.2,3404.8,2.536]
[1721387707017,2.93646,3405.5,3404.9,2.288]
[1721387707237,2.93625,3405.7,3404.9,2.288]
[1721387707452,2.9361,3405.9,3405.2,2.536]
[1721387707630,2.9361,3405.9,3405.3,0.05872773]
[1721387707838,2.93593,3406.1,3405.6,2.536]
[1721387708814,2.93575,3406.3,3405.6,2.536]
[1721387710225,2.93575,3406.3,3405.6,2.59472083]
[1721387710420,2.93575,3406.3,3405.7,1.08385108]
[1721387710629,2.93558,3406.5,3405.7,1.08385108]
[1721387711331,2.93558,3406.5,3406.0,2.536]
[1721387711645,2.93574,3406.3,3405.7,1.08385108]
[1721387712577,2.93574,3406.3,3405.6,2.536]
[1721387712719,2.936,3406.0,3405.6,2.536]
[1721387713644,2.93588,3406.2,3405.6,2.536]
[1721387714356,2.93591,3406.1,3405.6,2.536]
[1721387716750,2.93599,3406.0,3405.6,2.536]
[1721387717270,2.93608,3405.9,3405.6,2.536]
[1721387717559,2.93591,3406.1,3405.6,2.536]
[1721387718264,2.93591,3406.1,3405.6,2.7896]
[1721387718962,2.93591,3406.1,3405.7,2.3035]
[1721387719128,2.93563,3406.5,3406.0,2.536]
[1721387720497,2.93563,3406.5,3406.1,2.3348]
[1721387722555,2.93563,3406.5,3406.1,3.12136629]
[1721387723566,2.93565,3406.4,3406.1,0.78656629]
[1721387723743,2.93565,3406.4,3406.0,2.536]
[1721387723944,2.93582,3406.2,3405.8,2.4002]
[1721387727077,2.93535,3406.8,3406.1,2.3477]
[1721387727284,2.93517,3407.0,3406.6,2.536]
[1721387728851,2.93499,3407.2,3406.6,2.536]
[1721387729047,2.93481,3407.4,3406.6,5.47143]
[1721387729256,2.93481,3407.4,3406.8,2.4915]
[1721387729455,2.93481,3407.4,3406.9,0.796293]
[1721387730094,2.93464,3407.6,3407.0,2.536]
[1721387734590,2.9347,3407.5,3407.0,2.536]
[1721387734762,2.93479,3407.4,3407.0,2.536]
[1721387735087,2.93492,3407.3,3407.0,2.536]
[1721387735256,2.93492,3407.3,3406.8,2.4915]
[1721387735455,2.93512,3407.1,3406.8,2.4915]
[1721387735678,2.93513,3407.0,3406.7,3.0]
[1721387735967,2.93563,3406.5,3406.0,2.4486]
[1721387736199,2.93563,3406.5,3406.1,0.49846]
[1721387737717,2.93563,3406.5,3406.2,2.536]
[1721387739421,2.93542,3406.7,3406.2,2.536]
[1721387739623,2.93525,3406.9,3406.2,2.536]
[1721387739837,2.93525,3406.9,3406.2,5.47179]
[1721387739984,2.9353,3406.8,3406.3,1.135484]
[1721387743614,2.93498,3407.2,3406.4,2.44640534]
[1721387743925,2.93498,3407.2,3406.8,2.536]
[1721387744341,2.93479,3407.4,3406.8,2.536]
[1721387744622,2.93479,3407.4,3406.9,0.547145]
[1721387744824,2.93464,3407.6,3407.0,2.3374]
[1721387745039,2.93464,3407.6,3407.2,2.536]
[1721387746825,2.93472,3407.5,3407.2,2.536]
[1721387747615,2.93447,3407.8,3407.2,2.536]
[1721387748220,2.93447,3407.8,3407.2,3.08392398]
[1721387748387,2.93467,3407.6,3407.2,3.08392398]
[1721387751406,2.93454,3407.7,3407.2,3.08392398]
[1721387753894,2.93429,3408.0,3407.2,3.14261753]
[1721387754098,2.93429,3408.0,3407.3,0.05869355]
[1721387754324,2.93429,3408.0,3407.4,0.31426175]
[1721387754794,2.93429,3408.0,3407.5,2.2619]
[1721387756048,2.93419,3408.1,3407.5,2.2619]
[1721387757941,2.93428,3408.0,3407.5,2.2619]
[1721387760146,2.93428,3408.0,3407.6,2.536]
[1721387760339,2.93435,3407.9,3407.6,3.34069618]
[1721387760509,2.93452,3407.8,3407.4,0.31426175]
[1721387760734,2.93452,3407.8,3407.3,2.2548]
[1721387760735,5.86904,3407.8,3407.3,2.2548]
[1721387760919,5.86904,3407.8,3407.3,5.2548]
[1721387761264,2.93452,3407.8,3407.3,5.2548]
[1721387762335,2.93453,3407.7,3407.3,5.2548]
[1721387762518,2.9343,3408.0,3407.6,2.536]
[1721387762719,2.9343,3408.0,3407.7,0.49398]
[1721387763360,2.9343,3408.0,3407.8,2.49]
[1721387763881,2.93412,3408.2,3407.8,2.49]
[1721387764078,2.93393,3408.4,3408.1,2.536]
[1721387764577,2.93379,3408.6,3408.1,2.536]
[1721387764871,2.93379,3408.6,3408.2,0.2536]
[1721387768837,2.93316,3409.3,3408.5,2.536]
[1721387769035,2.93336,3409.1,3408.5,2.536]
[1721387771773,2.93341,3409.0,3408.5,2.536]
[1721387777489,2.4255,3410.0,3408.6,2.2878]
[1721387777650,2.9329,3409.6,3409.0,2.2878]
[1721387778087,2.93298,3409.5,3409.0,2.2878]
[1721387778273,2.93309,3409.4,3409.0,2.2878]
[1721387782600,2.93325,3409.2,3409.0,2.2878]
[1721387782770,2.93325,3409.2,3409.0,2.818418]
[1721387784683,2.93309,3409.4,3409.0,2.818418]
[1721387785129,2.93292,3409.6,3409.0,2.818418]
[1721387786936,2.93282,3409.7,3409.4,2.447]
[1721387787231,2.93282,3409.7,3409.5,0.4983]
[1721387789129,2.93265,3409.9,3409.5,2.9838]
[1721387796246,2.93227,3410.4,3409.7,2.536]
[1721387796636,2.93234,3410.3,3409.7,2.536]
[1721387796845,2.93243,3410.2,3409.8,0.55198]
[1721387799712,2.93243,3410.2,3409.9,2.3899]
[1721387800119,2.93231,3410.3,3409.9,2.3899]
[1721387801649,2.93239,3410.2,3409.9,2.3899]
[1721387801950,2.93248,3410.1,3409.8,0.55198]
[1721387802183,2.93231,3410.3,3410.0,1.054]
[1721387802481,2.93231,3410.3,3410.2,1.054]
[1721387804484,2.93215,3410.5,3410.2,3.4615]
[1721387804785,2.93215,3410.5,3410.4,1.054]
[1721387817869,2.93203,3410.7,3410.4,1.054]
[1721387818063,2.93203,3410.7,3410.6,1.054]
[1721387820808,5.86404,3410.7,3410.6,1.054]
[1721387828212,6.58593553,3411.1,3410.2,2.4075]
[1721387828213,2.93212,3410.5,3410.4,1.054]
[1721387831940,2.93255,3410.0,3409.6,5.4655]
[1721387832109,2.3488,3410.5,3409.6,9.09688]
[1721387832110,2.9328,3409.7,3409.6,9.09688]
[1721387833643,2.2742,3410.2,3409.5,7.8283]
[1721387833946,2.93318,3409.3,3409.1,2.2509]
[1721387834114,2.93318,3409.3,3409.2,1.054]
[1721387836736,2.3243,3409.7,3408.6,1.53016057]
[1721387836737,2.93323,3409.2,3409.0,1.054]
[1721387837737,2.93328,3409.2,3409.1,2.354]
[1721387837952,2.93315,3409.3,3409.1,2.6948]
[1721387838109,2.93315,3409.3,3409.2,1.054]
[1721387839844,2.933,3409.5,3409.2,1.054]
[1721387840039,2.933,3409.5,3409.4,1.054]
[1721387841530,5.20195,3410.0,3409.2,1.054]
[1721387841531,2.93316,3409.3,3409.2,1.054]
[1721387844224,2.9333,3409.2,3408.6,2.4103]
[1721387844549,2.93332,3409.1,3408.9,1.054]
[1721387849013,2.9331,3409.4,3408.9,1.054]
[1721387849014,2.93316,3409.3,3408.9,1.054]
[1721387849214,2.93316,3409.3,3408.6,2.93374]
[1721387849215,2.93316,3409.3,3409.2,1.054]
[1721387849417,2.93297,3409.6,3409.2,1.054]
[1721387849613,2.93287,3409.7,3409.4,1.054]
[1721387849858,2.93251,3410.1,3409.6,1.054]
[1721387850062,2.93251,3410.1,3410.0,1.054]
[1721387850360,2.93238,3410.2,3410.0,1.054]
[1721387852847,2.93238,3410.2,3409.8,1.054]
[1721387853278,2.93238,3410.2,3410.0,1.054]
[1721387853646,2.93238,3410.2,3410.0,1.39083]
[1721387866255,2.93222,3410.4,3410.0,1.39083]
[1721387866502,2.93222,3410.4,3410.3,1.054]
[1721387876912,2.93206,3410.6,3410.3,1.054]
[1721387877253,2.93206,3410.6,3410.5,1.054]
[1721387877715,2.93172,3411.0,3410.6,2.4279]
[1721387877915,2.93172,3411.0,3410.9,1.054]
[1721387880921,2.93172,3411.0,3410.1,2.4279]
[1721387880922,2.4455,3411.0,3410.1,2.4279]
[1721387881128,2.93218,3410.5,3410.1,1.054]
[1721387881630,2.93194,3410.7,3410.3,1.054]
[1721387881802,2.93181,3410.9,3410.3,1.054]
[1721387881803,2.93203,3410.6,3410.3,1.054]
[1721387882010,2.93213,3410.5,3410.3,1.054]
[1721387883353,2.9322,3410.4,3410.3,1.054]
[1721387883638,2.93237,3410.2,3410.1,1.054]
[1721387883838,2.93237,3410.2,3409.9,1.054]
[1721387884687,2.93237,3410.2,3410.1,1.054]
[1721387886218,2.93226,3410.4,3410.1,1.054]
[1721387886438,2.93226,3410.4,3410.3,1.054]
[1721387886610,2.93215,3410.5,3410.3,1.054]
[1721387889766,2.9322,3410.4,3410.3,1.054]
[1721387889930,2.9322,3410.4,3410.1,1.054]
[1721387896327,2.93229,3410.3,3410.1,1.054]
[1721387897535,2.9322,3410.4,3410.1,1.054]
[1721387897867,2.9322,3410.4,3410.3,1.054]
[1721387900275,4.16086553,3410.8,3410.3,1.39418]
[1721387900482,4.4692284,3411.0,3410.7,1.054]
[1721387900483,2.93178,3410.9,3410.7,1.054]
[1721387901031,2.93186,3410.8,3410.5,1.054]
[1721387901263,2.93203,3410.6,3410.5,1.054]
[1721387901456,2.93203,3410.6,3410.3,1.39418]
[1721387904994,1.22899553,3411.1,3410.3,1.39418]
[1721387904995,2.93177,3410.9,3410.3,1.39418]
[1721387905158,2.93177,3410.9,3410.5,1.054]
[1721387905787,2.93203,3410.6,3410.5,0.66743]
[1721387906093,2.93203,3410.6,3410.4,1.054]
[1721387908672,2.93212,3410.5,3410.4,1.054]
[1721387909087,2.93212,3410.5,3410.2,1.054]
[1721387909623,2.93203,3410.6,3410.2,1.054]
[1721387909624,2.93207,3410.6,3410.2,1.054]
[1721387909768,2.93207,3410.6,3410.0,4.054]
[1721387909769,2.93226,3410.4,3410.0,4.054]
[1721387909968,2.93226,3410.4,3410.0,2.1924]
[1721387910509,2.93226,3410.4,3410.2,1.054]
[1721387911888,2.93226,3410.4,3410.0,2.1924]
[1721387912087,2.93233,3410.3,3410.0,1.054]
[1721387912722,2.93233,3410.3,3410.2,1.054]
[1721387913010,2.93207,3410.6,3410.2,1.054]
[1721387913011,2.93217,3410.5,3410.2,1.054]
[1721387913200,2.93207,3410.6,3410.2,1.054]
[1721387914182,2.9322,3410.4,3410.2,1.054]
[1721387914435,2.93207,3410.6,3410.2,1.40725]
[1721387914732,2.93207,3410.6,3410.5,1.054]
[1721387915337,2.93189,3410.8,3410.5,1.054]
[1721387915478,2.9318,3410.9,3410.7,1.054]
[1721387915977,2.9318,3410.9,3410.5,1.054]
[1721387916581,3.57569553,3411.1,3410.5,1.054]
[1721387916782,2.932,3410.7,3410.5,1.054]
[1721387919278,2.93214,3410.5,3410.3,1.054]
[1721387920713,5.86401,3410.7,3410.0,3.0]
[1721387920919,2.93212,3410.5,3410.4,1.054]
[1721387925224,3.759452,3410.5,3409.9,7.33]
[1721387925437,2.93255,3410.0,3409.9,7.33]
[1721387925730,2.93269,3409.9,3409.6,1.054]
[1721387926923,2.93273,3409.8,3409.6,1.054]
[1721387928493,2.93256,3410.0,3409.6,1.054]
[1721387928832,2.93256,3410.0,3409.9,1.054]
[1721387929534,4.46903721,3410.7,3409.9,1.054]
[1721387929535,2.93239,3410.2,3409.9,1.054]
[1721387929861,2.93231,3410.3,3410.1,1.054]
[1721387930706,2.93213,3410.5,3410.1,1.054]
[1721387930933,2.93213,3410.5,3410.4,1.054]
[1721387931098,2.93194,3410.7,3410.4,1.054]
[1721387931298,2.93204,3410.6,3410.2,2.4201]
[1721387931494,2.93204,3410.6,3410.5,1.054]
[1721387932000,2.93204,3410.6,3410.3,0.24201]
[1721387934262,2.93192,3410.8,3410.3,0.24201]
[1721387934464,2.93197,3410.7,3410.3,0.24201]
[1721387935324,1.054,3410.4,3409.8,7.94421026]
[1721387935527,2.93298,3409.5,3408.8,0.61421026]
[1721387935849,2.93298,3409.5,3408.4,1.53838241]
[1721387935850,2.9335,3408.9,3408.3,1.07387486]
[1721387936163,2.9335,3408.9,3408.3,1.31735348]
[1721387936471,1.5364578,3409.5,3407.9,2.96188682]
[1721387936472,1.054,3408.7,3407.9,0.61421026]
[1721387936621,2.93416,3408.2,3407.8,0.45981838]
[1721387936821,2.93416,3408.2,3407.7,2.259]